fUSD/lending_fUSD_20240210
["ID","MTS","AMOUNT","RATE_DAILY","PERIOD"]
[313697171,1707591547849,2000.0,0.00021866,2]
[313697172,1707591573832,28188.61,0.00021866,2]
[313697173,1707591595861,1509.26,0.00021865,2]
[313697174,1707591597746,1000.0,0.00021865,2]
[313697175,1707591619591,509.02,0.00019948,2]
[313697176,1707591636076,153.54,0.00022015,2]
[313697177,1707591706170,750.0,0.00021806,2]
[313697178,1707591744669,156.64,0.00021798,2]
[313697179,1707591752031,500.0,0.00022015,2]
[313697180,1707591762547,315.44,0.00021973,2]
[313697181,1707591822092,1500.0,0.00022,2]
[313697182,1707591822368,1500.0,0.000215,2]
[313697183,1707591822986,1525.959603,0.00021,2]
[313697184,1707591856528,164.96,0.00021801,2]
[313697185,1707591876279,150.0,0.00022,2]
[313697186,1707591879897,300.0,0.00022,2]
[313697187,1707591969138,2806.2,0.00021628,2]
[313697188,1707591983881,150.0,0.00022,2]
[313697189,1707591985268,162.35182927,0.00020556,2]
[313697190,1707591986832,200.0,0.0002189,2]
[313697191,1707591987860,518.55980195,0.00021927,2]
[313697192,1707592010261,150.0,0.00022,2]
[313697196,1707592077266,754.63,0.00021649,2]
[313697198,1707592105860,177.16,0.00022,2]
[313697200,1707592114566,207.0,0.00021935,2]
[313697201,1707592120130,493.16,0.00019742,2]
[313697202,1707592120496,493.16,0.00022006,2]
[313697203,1707592131525,154.2,0.00021822,2]
[313697204,1707592131740,154.2,0.00021917,2]
[313697205,1707592131946,154.2,0.00022012,2]
[313697230,1707592165833,200.0,0.0002164,2]
[313697241,1707592174657,860.35973908,0.00022012,2]
[313697242,1707592176294,268.38032465,0.00022012,2]
[313697243,1707592177938,235.84449032,0.00022012,2]
[313697244,1707592180523,615.04701198,0.00022012,2]
[313697245,1707592180888,6352.95167392,0.00022012,2]
[313697246,1707592187189,2344.77001899,0.00022012,2]
[313697247,1707592190680,860.35973908,0.00022012,2]
[313697248,1707592192994,283.98955369,0.00022012,2]
[313697249,1707592193693,285.44492535,0.00022012,2]
[313697250,1707592193972,233.35698726,0.00022012,2]
[313697251,1707592198283,268.38032465,0.00022012,2]
[313697254,1707592202269,5212.35686383,0.00022012,2]
[313697255,1707592203451,155.0,0.00022012,2]
[313697256,1707592205813,612.608144,0.00022012,2]
[313697257,1707592208651,855.92,0.00021743,2]
[313697258,1707592209180,2333.21880977,0.00022012,2]
[313697259,1707592209674,167.13822699,0.00022012,2]
[313697260,1707592210976,283.98955369,0.00022012,2]
[313697261,1707592216645,860.35973908,0.00022012,2]
[313697262,1707592218284,255.66481378,0.00022012,2]
[313697263,1707592218459,612.608144,0.00022012,2]
[313697264,1707592220060,411.9541478,0.00022012,2]
[313697265,1707592222238,4676.62134263,0.00022012,2]
[313697266,1707592224776,6111.61322015,0.00022012,2]
[313697267,1707592229193,2333.21880977,0.00022012,2]
[313697268,1707592231145,283.98955369,0.00022012,2]
[313697269,1707592231453,160.77154033,0.00022,2]
[313697301,1707592232028,-213.27915301,0.00022094,2]
[313697303,1707592232037,-204.37360548,0.00022095,2]
[313697304,1707592232049,-1000.0,0.00022096,2]
[313697305,1707592232059,-157.93570004,0.00022106,2]
[313697306,1707592232069,-154.2,0.00022106,2]
[313697308,1707592232079,-221.51966416,0.0002211,2]
[313697310,1707592232088,-1752.39528177,0.00022155,2]
[313697311,1707592232097,-154.2,0.00022201,2]
[313697313,1707592232107,-154.2,0.00022296,2]
[313697314,1707592232118,-499.99,0.00022302,2]
[313697315,1707592232127,-157.93570001,0.00022305,2]
[313697316,1707592232136,-1244.36443992,0.00022315,2]
[313697317,1707592232146,-179.1,0.00022349,2]
[313697318,1707592232156,-154.2,0.00022391,2]
[313697319,1707592232166,-300.0,0.00022397,2]
[313697320,1707592232176,-150.0,0.00022397,2]
[313697321,1707592232185,-150.0,0.00022397,2]
[313697322,1707592232194,-150.99,0.00022398,2]
[313697323,1707592232204,-6783.95,0.00022398,2]
[313697324,1707592232213,-154.2,0.00022485,2]
[313697325,1707592232223,-1000.0,0.000225,2]
[313697326,1707592232232,-344.37618689,0.000225,2]
[313697327,1707592232261,-566.8494334,0.000225,2]
[313697328,1707592232271,-1407.9730666,0.000225,2]
[313697329,1707592232285,-4037.22804124,0.000225,2]
[313697330,1707592232297,-472.06158776,0.000225,2]
[313697331,1707592232309,-2431.44335424,0.000225,2]
[313697332,1707592232321,-4805.83630706,0.000225,2]
[313697333,1707592232334,-311.44051922,0.000225,2]
[313697334,1707592232354,-3518.29048109,0.000225,2]
[313697335,1707592232365,-4302.67886653,0.000225,2]
[313697336,1707592232377,-639.29473813,0.000225,2]
[313697337,1707592232397,-7107.585,0.000225,2]
[313697338,1707592232409,-3616.83518845,0.000225,2]
[313697339,1707592232419,-500.0,0.000225,2]
[313697341,1707592232428,-150.1,0.000225,3]
[313697343,1707592232438,-1500.0,0.000225,2]
[313697345,1707592232446,-170.14,0.000225,2]
[313697347,1707592232456,-157.93570001,0.00022503,2]
[313697350,1707592232466,-167.05,0.00022532,2]
[313697352,1707592232475,-150.0,0.00022548,2]
[313697354,1707592232484,-353.96,0.00022548,2]
[313697356,1707592232493,-154.2,0.0002258,2]
[313697358,1707592232503,-951.0,0.00022636,2]
[313697359,1707592232511,-2831.0,0.00022636,2]
[313697360,1707592232520,-707.0,0.00022636,2]
[313697361,1707592232529,-217.258,0.00022636,2]
[313697362,1707592232537,-1253.0,0.00022636,2]
[313697363,1707592232546,-154.2,0.00022675,2]
[313697364,1707592232554,-178.78743912,0.00022695,2]
[313697365,1707592232578,-320.6391067,0.00022695,2]
[313697366,1707592232590,-744.9378941,0.00022695,2]
[313697367,1707592232599,-228.39094332,0.000227,2]
[313697368,1707592232626,-254.21000005,0.000227,2]
[313697369,1707592232637,-311.08000015,0.000227,2]
[313697370,1707592232648,-409.47900183,0.000227,2]
[313697371,1707592232659,-272.72700117,0.000227,2]
[313697372,1707592232670,-1000.0,0.000227,2]
[313697374,1707592232682,-4271.04426822,0.000227,2]
[313697376,1707592232693,-12413.06878526,0.000227,2]
[313697378,1707592232703,-157.93570001,0.00022702,2]
[313697380,1707592232712,-150.0,0.00022732,2]
[313697382,1707592232721,-150.0,0.00022737,2]
[313697384,1707592232730,-150.0,0.00022741,2]
[313697386,1707592232739,-37751.7905,0.00022742,2]
[313697388,1707592232748,-268.43487274,0.00022746,2]
[313697390,1707592232757,-150.0,0.00022768,2]
[313697392,1707592232766,-154.2,0.0002277,2]
[313697394,1707592232775,-3599.52020434,0.0002277,2]
[313697396,1707592232784,-150.0,0.00022778,2]
[313697398,1707592232793,-150.0,0.00022796,2]
[313697400,1707592232803,-150.0,0.00022808,2]
[313697402,1707592232811,-150.0,0.00022821,2]
[313697404,1707592232821,-150.0,0.00022825,2]
[313697406,1707592232830,-855.92,0.0002283,2]
[313697408,1707592232839,-4266.85156024,0.0002284,2]
[313697410,1707592232848,-409.08753031,0.0002284,2]
[313697412,1707592232858,-611.05997391,0.00022841,2]
[313697414,1707592232867,-1232.0,0.00022842,2]
[313697416,1707592232876,-1019.812,0.00022842,2]
[313697418,1707592232886,-638.533,0.00022842,2]
[313697420,1707592232895,-286.459,0.00022842,2]
[313697422,1707592232904,-1946.0,0.00022842,2]
[313697424,1707592232913,-446.661,0.00022842,2]
[313697426,1707592232923,-1138.0,0.00022842,2]
[313697428,1707592232932,-985.147,0.00022842,2]
[313697430,1707592232941,-321.0,0.00022842,2]
[313697432,1707592232950,-150.0,0.00022842,2]
[313697434,1707592232960,-2519.0,0.00022842,2]
[313697436,1707592232971,-416.335,0.00022842,2]
[313697438,1707592232981,-7405.0,0.00022842,2]
[313697440,1707592232989,-8152.0,0.00022842,2]
[313697442,1707592232999,-19818.0,0.00022842,2]
[313697444,1707592233009,-1567.287,0.00022842,2]
[313697446,1707592233018,-2922.0,0.00022842,2]
[313697448,1707592233028,-2286.0,0.00022842,2]
[313697449,1707592233038,-30893.855,0.00022842,2]
[313697451,1707592233049,-1075.799,0.00022842,2]
[313697453,1707592233059,-154.2,0.00022864,2]
[313697455,1707592233068,-150.0,0.0002288,2]
[313697457,1707592233077,-150.0,0.0002288,2]
[313697459,1707592233087,-150.0,0.00022883,2]
[313697461,1707592233096,-1996.8931,0.00022898,2]
[313697463,1707592233105,-3552.42685591,0.00022898,2]
[313697465,1707592233114,-677.21514996,0.00022898,2]
[313697467,1707592233127,-677.21514996,0.00022899,2]
[313697469,1707592233138,-173.73557068,0.000229,2]
[313697471,1707592233147,-157.93570001,0.000229,2]
[313697472,1707592233155,-5000.0,0.000229,2]
[313697473,1707592233165,-677.21514996,0.000229,2]
[313697474,1707592233174,-588.08265434,0.000229,2]
[313697475,1707592233184,-669.43008984,0.000229,2]
[313697476,1707592233193,-811.82783998,0.000229,2]
[313697477,1707592233203,-10713.12912655,0.000229,2]
[313697478,1707592233212,-2139.31699382,0.000229,2]
[313697479,1707592233221,-150.0,0.00022926,2]
[313697480,1707592233231,-150.0,0.00022937,2]
[313697481,1707592233240,-150.0,0.00022948,2]
[313697482,1707592233249,-154.2,0.00022959,2]
[313697483,1707592233258,-150.0,0.00022961,2]
[313697484,1707592233268,-150.0,0.00022965,2]
[313697485,1707592233277,-150.0,0.00022965,2]
[313697486,1707592233286,-150.0,0.00022969,2]
[313697487,1707592233298,-150.0,0.0002297,2]
[313697488,1707592233308,-286.37979724,0.00022996,2]
[313697489,1707592233317,-155.49345059,0.00022996,2]
[313697490,1707592233327,-155.0,0.00022996,2]
[313697491,1707592233336,-155.39275973,0.00022996,2]
[313697492,1707592233345,-155.18134939,0.00022996,2]
[313697493,1707592233355,-338.86703874,0.00022996,2]
[313697494,1707592233364,-631.10009728,0.00022997,2]
[313697495,1707592233373,-413.55100587,0.00022998,2]
[313697496,1707592233382,-1406.21419992,0.00022998,2]
[313697497,1707592233391,-24576.1040846,0.00022998,2]
[313697498,1707592233401,-417119.95395231,0.00022998,2]
[313697499,1707592233414,-770.0,0.00022998,2]
[313697500,1707592236907,612.608144,0.00022012,2]
[313697501,1707592236997,1086.61117413,0.00022012,2]
[313697506,1707592238092,-2235.87409787,0.00022998,2]
[313697507,1707592238105,-289.30814126,0.00022998,2]
[313697508,1707592238119,-3699.40129594,0.00022998,2]
[313697509,1707592238304,-1394.00554639,0.00022998,2]
[313697512,1707592238658,443.88184982,0.00022012,2]
[313697515,1707592241236,-797.95569169,0.000229,2]
[313697516,1707592241291,-241.21836469,0.000229,2]
[313697517,1707592241301,-305.77720423,0.00022998,2]
[313697518,1707592241456,-657.75000058,0.00022998,2]
[313697519,1707592241510,-296.12134139,0.00022998,2]
[313697580,1707592243068,-6877.42618486,0.00022998,2]
[313697581,1707592243081,-1045.82126318,0.00022998,2]
[313697582,1707592243118,-784.89644254,0.00022998,2]
[313697583,1707592243131,-933.97462137,0.00022998,2]
[313697584,1707592243145,-427.149998,0.00022998,2]
[313697585,1707592243157,-1502.81579274,0.00022998,2]
[313697586,1707592243189,-344.10978337,0.00022998,2]
[313697587,1707592243337,-5218.77369504,0.00022998,2]
[313697603,1707592246001,-51325.62253232,0.00022998,2]
[313697605,1707592246011,-2590.65223441,0.00022998,2]
[313697607,1707592246021,-155.73267729,0.00022998,2]
[313697609,1707592246030,-155.44597949,0.00022998,2]
[313697611,1707592246039,-921.14475538,0.00022998,2]
[313697613,1707592246051,-372.52079518,0.00022998,2]
[313697615,1707592246060,-155.0,0.00022998,2]
[313697617,1707592246070,-191.56467231,0.00022998,2]
[313697619,1707592246079,-155.0,0.00022998,2]
[313697621,1707592246089,-388.36932466,0.00022998,2]
[313697623,1707592246098,-155.15714118,0.00022998,2]
[313697625,1707592246108,-155.0,0.00022998,2]
[313697627,1707592246118,-3050.9154175,0.00022998,2]
[313697629,1707592246127,-200.68701933,0.00022998,2]
[313697631,1707592246137,-588.55419235,0.00022999,2]
[313697633,1707592246146,-410.08270615,0.00022999,2]
[313697635,1707592246155,-436.28844132,0.00022999,2]
[313697637,1707592246164,-5000.0,0.00022999,2]
[313697639,1707592246174,-150.0,0.00022999,2]
[313697641,1707592246183,-150.0,0.00022999,2]
[313697643,1707592246193,-150.0,0.00022999,2]
[313697645,1707592246203,-274551.25160781,0.00022999,2]
[313697647,1707592246220,-638.51190344,0.00022999,2]
[313697705,1707592247186,2330.82603743,0.00022012,2]
[313697706,1707592250979,186.48568967,0.00022012,2]
[313697707,1707592260786,5887.66648572,0.00022012,2]
[313697708,1707592325190,2333.21880977,0.00022012,2]
[313697709,1707592326478,612.890857,0.00022012,2]
[313697710,1707592342473,156.33247905,0.00022012,2]
[313697711,1707592345197,2417.6340842,0.00022012,2]
[313697712,1707592346543,200.0,0.00021902,2]
[313697713,1707592388918,732.18690129,0.00021,2]
[313697714,1707592401978,155.0,0.00020693,2]
[313697742,1707592513594,203.22520032,0.0002201,2]
[313697743,1707592543502,809.5851531,0.00020693,2]
[313697744,1707592544484,362.00852423,0.00020693,2]
[313697745,1707592549290,404.74039498,0.0002135,2]
[313697746,1707592551344,1696.3107292,0.0002179,2]
[313697747,1707592555895,155.0,0.00019809,2]
[313697748,1707592556935,735.5792147,0.00021,2]
[313697749,1707592557316,494.07788319,0.0002201,2]
[313697750,1707592564555,260.9149056,0.0002201,2]
[313697751,1707592565182,268.85327237,0.0002201,2]
[313697752,1707592567242,2232.2179096,0.0002201,2]
[313697753,1707592567309,1696.3107292,0.0002179,2]
[313697754,1707592572198,156.52902322,0.00019809,2]
[313697755,1707592573763,285.05375891,0.0002201,2]
[313697757,1707592577369,869.23510328,0.0002201,2]
[313697758,1707592579842,162.10481077,0.00020693,2]
[313697759,1707592583198,227.4759559,0.0002201,2]
[313697760,1707592591060,283.85892407,0.0002201,2]
[313697761,1707592593304,225.65083925,0.0002179,2]
[313697762,1707592612126,363.79092358,0.0002201,2]
[313697765,1707592643755,840.0,0.00021943,2]
[313697766,1707592656403,170.88,0.00017555,2]
[313697767,1707592677521,464.66,0.00020039,2]
[313697768,1707592688456,161.47,0.00021957,2]
[313697769,1707592717826,211.57,0.00021943,2]
[313697770,1707592739558,525.42,0.00021943,2]
[313697772,1707592752754,258.33,0.00022,2]
[313697773,1707592762118,5929.49,0.000219,2]
[313697806,1707592817906,203.22520032,0.00021972,2]
[313697817,1707592833903,164.21,0.00021898,2]
[313697831,1707592869486,-213.27915301,0.00022068,2]
[313697832,1707592869517,-280.70042105,0.00022071,2]
[313697833,1707592869540,-333.14776528,0.00022072,2]
[313697840,1707592893144,-2855.8,0.00022109,2]
[313697841,1707592893165,-1193.41,0.00022109,2]
[313697845,1707592972622,685.16,0.00021944,2]
[313697847,1707593024264,850.24479968,0.00021961,2]
[313697848,1707593024290,1955.45520032,0.00021961,2]
[313697849,1707593065332,161.49,0.00021942,2]
[313697850,1707593079023,150.0,0.00022,2]
[313697851,1707593102363,328.0,0.00021934,2]
[313697852,1707593182964,441.42,0.00019987,2]
[313697853,1707593186916,150.0,0.00022,2]
[313697854,1707593187721,513.55,0.00021885,2]
[313697867,1707593253503,262.71,0.00021875,2]
[313697868,1707593262695,5026.49479968,0.0002188,2]
[313697869,1707593262720,8989.12,0.0002188,2]
[313697870,1707593262741,9884.38520032,0.0002188,2]
[313697897,1707593387139,258.33,0.00022,2]
[313697915,1707593432143,-156.26,0.0002207,2]
[313697916,1707593432153,-329.34,0.00022073,2]
[313697917,1707593432162,-207.0,0.00022107,2]
[313697918,1707593432171,-315.51171313,0.00022137,2]
[313697919,1707593432199,-200.54828687,0.00022137,2]
[313697920,1707593432208,-441.42,0.00022251,2]
[313697921,1707593432217,-169.02,0.000225,2]
[313697922,1707593432226,-713.11,0.00022516,2]
[313697923,1707593432235,-712.28,0.00022527,2]
[313697924,1707593432245,-1089.75583539,0.00022538,2]
[313697925,1707593432254,-150.99,0.00022538,2]
[313697926,1707593432264,-150.0,0.00022548,2]
[313697927,1707593432275,-300.0,0.00022561,2]
[313697928,1707593432285,-1831.47569732,0.00022562,2]
[313697929,1707593432296,-5335.54724617,0.00022562,2]
[313697930,1707593432309,-12832.96705651,0.00022562,2]
[313697931,1707593432318,-119.73854565,0.00022562,2]
[313697932,1707593432331,-339.95296193,0.00022562,2]
[313697933,1707593432343,-499.51621629,0.00022562,2]
[313697934,1707593432364,-266.15794678,0.00022562,2]
[313697935,1707593432375,-637.52774507,0.00022562,2]
[313697936,1707593432400,-553.74088929,0.00022562,2]
[313697937,1707593432412,-5686.61557845,0.00022562,2]
[313697938,1707593432424,-509.55,0.00022562,2]
[313697939,1707593432449,-5402.71354348,0.00022562,2]
[313697940,1707593432461,-307.45657306,0.00022562,2]
[313697941,1707593432470,-2297.00568423,0.000226,2]
[313697942,1707593432490,-1395.99431577,0.000226,2]
[313697943,1707593432499,-443.25495091,0.000226,2]
[313697944,1707593432519,-4734.87157085,0.000226,2]
[313697975,1707593433103,150.0,0.00022,2]
[313697981,1707593438278,-821.90291404,0.000226,2]
[313697982,1707593438291,-271.81469396,0.000226,2]
[313697983,1707593438331,-13512.15587024,0.000226,2]
[313697984,1707593438341,-898.03315757,0.00022841,3]
[313697985,1707593438351,-5861.30872387,0.00022841,2]
[313697986,1707593438361,-5861.30872385,0.00022871,2]
[313697987,1707593438370,-4950.3205,0.00022898,2]
[313697988,1707593438381,-3108.37349886,0.00022899,2]
[313697989,1707593438391,-173.73557067,0.000229,2]
[313697990,1707593438400,-446.28672656,0.000229,2]
[313697991,1707593438409,-800.76457313,0.000229,2]
[313697992,1707593438421,-444.57376214,0.000229,2]
[313697993,1707593438460,-1106.13673529,0.000229,2]
[313697994,1707593438472,-355.66430477,0.000229,2]
[313697995,1707593438483,-1195.43925594,0.000229,2]
[313697996,1707593438494,-699.0577829,0.000229,2]
[313697997,1707593438558,-1125.725006,0.000229,2]
[313697998,1707593438612,-133.94730368,0.000229,2]
[313697999,1707593438622,-692.78270426,0.000229,2]
[313698000,1707593438631,-392.05510288,0.000229,2]
[313698001,1707593438640,-212.84139054,0.000229,2]
[313698028,1707593440746,-328.37716944,0.000229,2]
[313698030,1707593440756,-1090.31919067,0.000229,2]
[313698032,1707593440765,-155.72340592,0.00022939,2]
[313698033,1707593440775,-279.69007521,0.0002294,2]
[313698034,1707593440789,-1253.0,0.00022941,2]
[313698035,1707593440798,-594.654,0.00022941,2]
[313698036,1707593440807,-1232.0,0.00022941,2]
[313698037,1707593440817,-216.0,0.00022941,2]
[313698038,1707593440826,-1946.0,0.00022941,2]
[313698039,1707593440835,-428.0,0.00022941,2]
[313698040,1707593440845,-598.0,0.00022941,2]
[313698041,1707593440854,-237.0,0.00022941,2]
[313698042,1707593440864,-1003.0,0.00022941,2]
[313698043,1707593440873,-321.0,0.00022941,2]
[313698044,1707593440883,-150.0,0.00022941,2]
[313698045,1707593440892,-858.0,0.00022941,2]
[313698046,1707593440902,-1138.0,0.00022941,2]
[313698047,1707593440911,-2519.0,0.00022941,2]
[313698048,1707593440921,-343.0,0.00022941,2]
[313698049,1707593440930,-2286.0,0.00022941,2]
[313698050,1707593440939,-7405.0,0.00022941,2]
[313698051,1707593440954,-8152.0,0.00022941,2]
[313698052,1707593440963,-3043.7,0.00022941,2]
[313698053,1707593440972,-396.0,0.00022941,2]
[313698054,1707593440981,-19818.0,0.00022941,2]
[313698055,1707593440990,-2922.0,0.00022941,2]
[313698056,1707593440999,-1367.0,0.00022941,2]
[313698057,1707593441008,-1036.0,0.00022941,2]
[313698058,1707593441017,-1858.0,0.00022941,2]
[313698059,1707593441026,-840.0,0.00022941,2]
[313698060,1707593441035,-2831.0,0.00022941,2]
[313698061,1707593441044,-951.0,0.00022941,2]
[313698062,1707593441053,-157.497,0.00022941,2]
[313698063,1707593441063,-513.55,0.00022979,2]
[313698064,1707593441072,-2155.751457,0.00022992,3]
[313698065,1707593441082,-700.98035507,0.00022992,2]
[313698066,1707593441092,-2150.9247051,0.00022998,2]
[313698067,1707593441102,-4736.7423551,0.00022998,2]
[313698068,1707593441111,-11383.6623333,0.00022998,2]
[313698069,1707593441121,-16459.7943726,0.00022998,2]
[313698070,1707593441131,-17364.9194689,0.00022998,2]
[313698071,1707593441140,-1502.4073693,0.00022998,2]
[313698072,1707593441150,-24437.6426666,0.00022998,2]
[313698073,1707593441160,-1954.78383391,0.00022998,3]
[313698074,1707593441170,-39927.75995066,0.00022998,2]
[313698075,1707593441199,-274.25863824,0.00022998,2]
[313698076,1707593441210,-9995.62325962,0.00022998,2]
[313698077,1707593441292,-513.84877829,0.00022998,2]
[313698078,1707593441305,-300.0,0.00022998,2]
[313698079,1707593441371,-7641.57211398,0.00022998,2]
[313698080,1707593441402,-7420.13946109,0.00022998,2]
[313698081,1707593441414,-561.6645378,0.00022998,2]
[313698082,1707593441429,-1000.97407067,0.00022998,2]
[313698083,1707593441446,-1622.17999999,0.00022998,2]
[313698084,1707593441457,-876.45499932,0.00022998,2]
[313698088,1707593443211,-1281.63905523,0.00022998,2]
[313698089,1707593443223,-878.55182591,0.00022998,2]
[313698090,1707593443235,-475.33246739,0.00022998,2]
[313698091,1707593443246,-844.61316534,0.00022998,2]
[313698092,1707593443257,-29854.19545112,0.00022998,2]
[313698093,1707593443267,-1741.13037133,0.00022999,3]
[313698094,1707593443278,-294.27709617,0.00022999,2]
[313698095,1707593443287,-500.0,0.00022999,2]
[313698096,1707593443297,-500.0,0.00022999,2]
[313698097,1707593443307,-500.0,0.00022999,2]
[313698098,1707593443315,-500.0,0.00022999,2]
[313698099,1707593443325,-537.43115602,0.00022999,2]
[313698100,1707593443333,-500.0,0.00022999,2]
[313698101,1707593443342,-446.86487083,0.00022999,2]
[313698102,1707593443352,-500.0,0.00022999,2]
[313698103,1707593443361,-500.0,0.00022999,2]
[313698104,1707593443370,-500.0,0.00022999,2]
[313698105,1707593443378,-500.0,0.00022999,2]
[313698106,1707593443387,-158.90012003,0.00022999,2]
[313698107,1707593443396,-500.0,0.00022999,2]
[313698108,1707593443405,-188.64251879,0.00022999,2]
[313698109,1707593443413,-500.0,0.00022999,2]
[313698111,1707593443422,-500.0,0.00022999,2]
[313698113,1707593443431,-241.92817371,0.00022999,2]
[313698115,1707593443440,-500.0,0.00022999,2]
[313698116,1707593443449,-500.0,0.00022999,2]
[313698117,1707593443458,-500.0,0.00022999,2]
[313698118,1707593443468,-500.0,0.00022999,2]
[313698119,1707593443477,-176.16221118,0.00022999,2]
[313698120,1707593443486,-500.0,0.00022999,2]
[313698121,1707593443495,-500.0,0.00022999,2]
[313698122,1707593443504,-500.0,0.00022999,2]
[313698123,1707593443512,-500.0,0.00022999,2]
[313698124,1707593443521,-500.0,0.00022999,2]
[313698125,1707593443531,-500.0,0.00022999,2]
[313698126,1707593443540,-500.0,0.00022999,2]
[313698127,1707593443549,-500.0,0.00022999,2]
[313698129,1707593443559,-500.0,0.00022999,2]
[313698131,1707593443568,-500.0,0.00022999,2]
[313698132,1707593443577,-500.0,0.00022999,2]
[313698133,1707593443586,-415.46803082,0.00022999,2]
[313698135,1707593443607,-84.53196918,0.00022999,2]
[313698136,1707593443616,-500.0,0.00022999,2]
[313698137,1707593443626,-1025.12850017,0.00022999,2]
[313698138,1707593443638,-974.87149983,0.00022999,2]
[313698139,1707593443652,-200.0,0.00022999,2]
[313698140,1707593443665,-399.01705163,0.00022999,2]
[313698143,1707593443674,-130.25779028,0.00022999,2]
[313698145,1707593443813,-300.78199685,0.00022999,2]
[313698146,1707593443822,-94.18800314,0.00022999,2]
[313698147,1707593443834,-55.81199686,0.00022999,2]
[313698148,1707593443844,-150.0,0.00022999,2]
[313698149,1707593443853,-150.0,0.00022999,2]
[313698150,1707593443862,-970.90176312,0.00023,3]
[313698151,1707593443871,-2280.11918575,0.00023,2]
[313698152,1707593443901,-490527.99359455,0.00023,2]
[313698153,1707593443910,-140051.82846387,0.00023,2]
[313698154,1707593443919,-723635.36598645,0.00023,2]
[313698155,1707593443947,-622.56932309,0.00023,2]
[313698180,1707593446695,-2342.50177779,0.00022939,2]
[313698182,1707593446705,-1179.77337866,0.00022997,2]
[313698184,1707593446714,-2155.62849727,0.00022997,2]
[313698185,1707593446724,-27264.89522554,0.00023,2]
[313698189,1707593446765,-13892.20418259,0.00023,2]
[313698240,1707593577118,1490.37838574,0.00022036,2]
[313698241,1707593598458,2800.6198924,0.00022037,2]
[313698242,1707593628874,159.99400007,0.00022029,2]
[313698243,1707593630035,299.99,0.00022,2]
[313698244,1707593634196,447.49,0.00019771,2]
[313698245,1707593634420,447.49,0.00022035,2]
[313698246,1707593641668,2099.99,0.00022,2]
[313698247,1707593648483,262.85097326,0.00022029,2]
[313698248,1707593656294,404.41481397,0.00022029,2]
[313698249,1707593657930,403.98004389,0.00021368,2]
[313698250,1707593659983,421.92602062,0.00021248,2]
[313698251,1707593662899,160.044691,0.0002201,2]
[313698252,1707593673212,1609.0,0.00021913,2]
[313698253,1707593673937,387.08514119,0.00021368,2]
[313698254,1707593675793,153.55,0.00021886,2]
[313698255,1707593676242,7650.9737,0.00022036,2]
[313698256,1707593676441,153.55,0.00021981,2]
[313698257,1707593678241,225.53810435,0.00021248,2]
[313698258,1707593695425,737.6,0.00021524,2]
[313698259,1707593721171,23900.0,0.00021494,2]
[313698268,1707593736177,368.337341,0.00021961,2]
[313698269,1707593739646,12057.96667706,0.00021248,2]
[313698270,1707593743497,262.71,0.00021464,2]
[313698271,1707593744902,1369.98,0.00021635,2]
[313698272,1707593745099,19245.6336,0.00022029,2]
[313698273,1707593747061,161.47,0.00021434,2]
[313698274,1707593754629,3560.0648,0.00022035,2]
[313698275,1707593759634,11252.00976165,0.00021248,2]
[313698276,1707593763430,3480.9554,0.00022036,2]
[313698277,1707593783933,182.5353,0.00022036,2]
[313698278,1707593785609,2400.0,0.00022,2]
[313698279,1707593787217,511.42,0.00021494,2]
[313698280,1707593787934,403.98004389,0.00020611,2]